[Event "Titled Tuesday Blitz August 09 Early 2022"]
[White "Csonka, Balazs"]
[Black "Vazquez Espino, Uriel"]
[WhiteFideId "742910"]
[BlackFideId "5119138"]
[WhiteElo "2404"]
[BlackElo "2399"]
[Result "1-0"]
[Round "02"]
[TimeControl "180+1"]
[Date "2022.08.09"]
[WhiteClock "0:00:04"]
[BlackClock "0:00:05"]

1. e4 {[%clk 0:03:00]}  c5 {[%clk 0:02:59]} 2. Nc3 {[%clk 0:02:59]}  e6 {[%clk 0:02:57]} 3. Nge2 {[%clk 0:02:56]}  Nc6 {[%clk 0:02:57]} 4. d4 {[%clk 0:02:56]}  cxd4 {[%clk 0:02:58]} 5. Nxd4 {[%clk 0:02:56]}  Qc7 {[%clk 0:02:58]} 6. g3 {[%clk 0:02:50]}  a6 {[%clk 0:02:55]} 7. Bg2 {[%clk 0:02:49]}  Nf6 {[%clk 0:02:55]} 8. O-O {[%clk 0:02:49]}  Nxd4 {[%clk 0:02:54]} 9. Qxd4 {[%clk 0:02:47]}  Bc5 {[%clk 0:02:54]} 10. Bf4 {[%clk 0:02:45]}  d6 {[%clk 0:02:55]} 11. Qd2 {[%clk 0:02:40]}  h6 {[%clk 0:02:55]} 12. Rad1 {[%clk 0:02:37]}  e5 {[%clk 0:02:55]} 13. Be3 {[%clk 0:02:36]}  Bxe3 {[%clk 0:02:55]} 14. Qxe3 {[%clk 0:02:34]}  Be6 {[%clk 0:02:51]} 15. f4 {[%clk 0:02:22]}  Bc4 {[%clk 0:02:36]} 16. Rf3 {[%clk 0:02:04]}  Ng4 {[%clk 0:02:33]} 17. Qd2 {[%clk 0:02:03]}  Qb6+ {[%clk 0:01:44]} 18. Kh1 {[%clk 0:02:02]}  O-O {[%clk 0:01:43]} 19. b3 {[%clk 0:01:44]}  Be6 {[%clk 0:01:28]} 20. f5 {[%clk 0:01:32]}  Bc8 {[%clk 0:01:25]} 21. Nd5 {[%clk 0:01:06]}  Qd8 {[%clk 0:01:23]} 22. f6 {[%clk 0:00:58]}  Be6 {[%clk 0:01:17]} 23. fxg7 {[%clk 0:00:36]}  Kxg7 {[%clk 0:01:18]} 24. Rdf1 {[%clk 0:00:36]}  Qg5 {[%clk 0:01:10]} 25. Qe2 {[%clk 0:00:16]}  Bxd5 {[%clk 0:00:50]} 26. Rf5 {[%clk 0:00:12]}  Qg6 {[%clk 0:00:48]} 27. exd5 {[%clk 0:00:13]}  h5 {[%clk 0:00:43]} 28. Be4 {[%clk 0:00:12]}  Qh6 {[%clk 0:00:31]} 29. h3 {[%clk 0:00:12]}  Qe3 {[%clk 0:00:29]} 30. Qf3 {[%clk 0:00:04]}  Qxf3+ {[%clk 0:00:26]} 31. R1xf3 {[%clk 0:00:05]}  Nh6 {[%clk 0:00:25]} 32. Rg5+ {[%clk 0:00:05]}  Kh8 {[%clk 0:00:23]} 33. Rxh5 {[%clk 0:00:06]}  Kg7 {[%clk 0:00:23]} 34. Rg5+ {[%clk 0:00:06]}  Kh8 {[%clk 0:00:23]} 35. Rf6 {[%clk 0:00:07]}  Ng8 {[%clk 0:00:19]} 36. Rxd6 {[%clk 0:00:08]}  f5 {[%clk 0:00:18]} 37. Bxf5 {[%clk 0:00:07]}  Nf6 {[%clk 0:00:17]} 38. g4 {[%clk 0:00:04]}  e4 {[%clk 0:00:17]} 39. Rg6 {[%clk 0:00:04]}  Ng8 {[%clk 0:00:12]} 40. Rde6 {[%clk 0:00:04]}  Rae8 {[%clk 0:00:12]} 41. c4 {[%clk 0:00:03]}  e3 {[%clk 0:00:11]} 42. Bd3 {[%clk 0:00:03]}  e2 {[%clk 0:00:09]} 43. Bxe2 {[%clk 0:00:03]}  Rxe6 {[%clk 0:00:08]} 44. Rxe6 {[%clk 0:00:04]}  Rf2 {[%clk 0:00:09]} 45. Kg1 {[%clk 0:00:04]}  Rf4 {[%clk 0:00:08]} 46. d6 {[%clk 0:00:04]}  Rd4 {[%clk 0:00:09]} 47. c5 {[%clk 0:00:04]}  Rd2 {[%clk 0:00:09]} 48. Bc4 {[%clk 0:00:05]}  Kg7 {[%clk 0:00:09]} 49. Re8 {[%clk 0:00:04]}  Nf6 {[%clk 0:00:09]} 50. Re7+ {[%clk 0:00:04]}  Kg6 {[%clk 0:00:09]} 51. Rxb7 {[%clk 0:00:04]}  Ne4 {[%clk 0:00:09]} 52. d7 {[%clk 0:00:04]}  Ng5 {[%clk 0:00:09]} 53. Kf1 {[%clk 0:00:03]}  Nf3 {[%clk 0:00:08]} 54. Be2 {[%clk 0:00:04]}  Nd4 {[%clk 0:00:07]} 55. Rb6+ {[%clk 0:00:04]}  Kg5 {[%clk 0:00:07]} 56. Rd6 {[%clk 0:00:05]}  Kf4 {[%clk 0:00:05]} 57. d8=Q {[%clk 0:00:04]}  Ke3 {[%clk 0:00:05]} 58. Qe7+ {[%clk 0:00:04]} 1-0


[Site "https://www.chess.com"]

[Event "Titled Tuesday Blitz August 09 Early 2022"]
[White "D`Arruda, Ricardo D."]
[Black "Sailer, Mike"]
[WhiteFideId "100692"]
[BlackFideId "2012901"]
[WhiteElo "2476"]
[BlackElo "2109"]
[Result "0-1"]
[Round "02"]
[TimeControl "180+1"]
[Date "2022.08.09"]
[WhiteClock "0:00:02"]
[BlackClock "0:00:14"]

1. d4 {[%clk 0:03:00]}  d5 {[%clk 0:02:59]} 2. Nf3 {[%clk 0:02:59]}  Bf5 {[%clk 0:02:57]} 3. e3 {[%clk 0:02:57]}  e6 {[%clk 0:02:58]} 4. c4 {[%clk 0:02:56]}  Nc6 {[%clk 0:02:57]} 5. Bd3 {[%clk 0:02:53]}  Bxd3 {[%clk 0:02:56]} 6. Qxd3 {[%clk 0:02:54]}  Nf6 {[%clk 0:02:56]} 7. O-O {[%clk 0:02:52]}  Be7 {[%clk 0:02:56]} 8. Nc3 {[%clk 0:02:48]}  O-O {[%clk 0:02:53]} 9. e4 {[%clk 0:02:48]}  Nb4 {[%clk 0:02:38]} 10. Qe2 {[%clk 0:02:45]}  dxe4 {[%clk 0:02:35]} 11. Nxe4 {[%clk 0:02:44]}  Nxe4 {[%clk 0:02:34]} 12. Qxe4 {[%clk 0:02:45]}  c6 {[%clk 0:02:29]} 13. a3 {[%clk 0:02:43]}  Na6 {[%clk 0:02:29]} 14. Bf4 {[%clk 0:02:39]}  Nc7 {[%clk 0:02:24]} 15. Rac1 {[%clk 0:02:37]}  Ne8 {[%clk 0:02:23]} 16. Rfd1 {[%clk 0:02:34]}  Nd6 {[%clk 0:02:22]} 17. Qc2 {[%clk 0:02:29]}  Nf5 {[%clk 0:02:20]} 18. d5 {[%clk 0:02:14]}  cxd5 {[%clk 0:02:19]} 19. cxd5 {[%clk 0:02:14]}  Rc8 {[%clk 0:02:19]} 20. Qxc8 {[%clk 0:01:58]}  Qxc8 {[%clk 0:02:20]} 21. Rxc8 {[%clk 0:01:59]}  Rxc8 {[%clk 0:02:20]} 22. dxe6 {[%clk 0:02:00]}  fxe6 {[%clk 0:02:17]} 23. g4 {[%clk 0:01:58]}  Nh4 {[%clk 0:02:06]} 24. Nxh4 {[%clk 0:01:46]}  Bxh4 {[%clk 0:02:06]} 25. Be5 {[%clk 0:01:18]}  Rd8 {[%clk 0:01:46]} 26. Rc1 {[%clk 0:01:06]}  Rd7 {[%clk 0:01:40]} 27. Rc2 {[%clk 0:00:57]}  Kf7 {[%clk 0:01:39]} 28. f4 {[%clk 0:00:51]}  Bf6 {[%clk 0:01:32]} 29. Kf2 {[%clk 0:00:39]}  Bxe5 {[%clk 0:01:24]} 30. fxe5 {[%clk 0:00:40]}  Kg6 {[%clk 0:01:20]} 31. Ke3 {[%clk 0:00:38]}  Kg5 {[%clk 0:01:17]} 32. h3 {[%clk 0:00:34]}  Kh4 {[%clk 0:01:10]} 33. Rc8 {[%clk 0:00:18]}  Kxh3 {[%clk 0:01:06]} 34. Re8 {[%clk 0:00:19]}  Kxg4 {[%clk 0:01:02]} 35. Rxe6 {[%clk 0:00:20]}  Kf5 {[%clk 0:00:40]} 36. Re8 {[%clk 0:00:19]}  Rd5 {[%clk 0:00:35]} 37. e6 {[%clk 0:00:15]}  Re5+ {[%clk 0:00:35]} 38. Kf3 {[%clk 0:00:15]}  Rxe6 {[%clk 0:00:35]} 39. Rb8 {[%clk 0:00:12]}  Re7 {[%clk 0:00:34]} 40. b4 {[%clk 0:00:09]}  Kg5 {[%clk 0:00:30]} 41. Rf8 {[%clk 0:00:08]}  h5 {[%clk 0:00:28]} 42. Rd8 {[%clk 0:00:08]}  g6 {[%clk 0:00:26]} 43. Rd5+ {[%clk 0:00:07]}  Kf6 {[%clk 0:00:24]} 44. Kf4 {[%clk 0:00:08]}  g5+ {[%clk 0:00:20]} 45. Kf3 {[%clk 0:00:04]}  h4 {[%clk 0:00:18]} 46. Kg4 {[%clk 0:00:02]}  Re4+ {[%clk 0:00:15]} 47. Kh5 {[%clk 0:00:02]}  Re5 {[%clk 0:00:14]} 0-1


[Site "https://www.chess.com"]

[Event "Titled Tuesday Blitz August 09 Early 2022"]
[White "Daeschler, Florian"]
[Black "Shapiro, Daniel"]
[WhiteFideId "20678193"]
[BlackFideId "2001780"]
[WhiteElo "2187"]
[BlackElo "2245"]
[Result "1-0"]
[Round "02"]
[TimeControl "180+1"]
[Date "2022.08.09"]
[WhiteClock "0:00:16"]
[BlackClock "0:00:04"]

1. e4 {[%clk 0:03:00]}  e6 {[%clk 0:03:00]} 2. d4 {[%clk 0:03:00]}  d5 {[%clk 0:03:00]} 3. Nc3 {[%clk 0:02:59]}  dxe4 {[%clk 0:03:00]} 4. Nxe4 {[%clk 0:02:59]}  Bd7 {[%clk 0:03:00]} 5. Nf3 {[%clk 0:02:54]}  Bc6 {[%clk 0:03:01]} 6. Bd3 {[%clk 0:02:54]}  Nd7 {[%clk 0:03:00]} 7. O-O {[%clk 0:02:54]}  Ngf6 {[%clk 0:03:01]} 8. Ng3 {[%clk 0:02:48]}  Bd6 {[%clk 0:02:47]} 9. Re1 {[%clk 0:02:47]}  O-O {[%clk 0:02:46]} 10. c3 {[%clk 0:02:45]}  b6 {[%clk 0:02:46]} 11. Bc2 {[%clk 0:02:43]}  Re8 {[%clk 0:02:40]} 12. Qd3 {[%clk 0:02:42]}  Bb7 {[%clk 0:02:37]} 13. Bg5 {[%clk 0:02:40]}  g6 {[%clk 0:02:22]} 14. Rad1 {[%clk 0:02:33]}  Be7 {[%clk 0:02:15]} 15. Bh6 {[%clk 0:02:15]}  c5 {[%clk 0:02:14]} 16. Ng5 {[%clk 0:02:13]}  Qc7 {[%clk 0:02:08]} 17. Qe2 {[%clk 0:02:02]}  Bf8 {[%clk 0:01:55]} 18. Bxf8 {[%clk 0:02:02]}  Rxf8 {[%clk 0:01:47]} 19. N3e4 {[%clk 0:01:54]}  Nd5 {[%clk 0:01:15]} 20. Ba4 {[%clk 0:01:25]}  N7f6 {[%clk 0:00:54]} 21. c4 {[%clk 0:01:15]}  Nxe4 {[%clk 0:00:49]} 22. Nxe4 {[%clk 0:00:58]}  Nf4 {[%clk 0:00:49]} 23. Qe3 {[%clk 0:00:51]}  Nh5 {[%clk 0:00:33]} 24. dxc5 {[%clk 0:00:48]}  Bxe4 {[%clk 0:00:28]} 25. Qxe4 {[%clk 0:00:42]}  bxc5 {[%clk 0:00:25]} 26. Bc2 {[%clk 0:00:38]}  Rab8 {[%clk 0:00:23]} 27. b3 {[%clk 0:00:38]}  a5 {[%clk 0:00:23]} 28. Qe5 {[%clk 0:00:36]}  Qxe5 {[%clk 0:00:20]} 29. Rxe5 {[%clk 0:00:37]}  Rfc8 {[%clk 0:00:19]} 30. Rd7 {[%clk 0:00:36]}  Nf6 {[%clk 0:00:14]} 31. Ra7 {[%clk 0:00:32]}  Rd8 {[%clk 0:00:14]} 32. Re2 {[%clk 0:00:24]}  Ra8 {[%clk 0:00:15]} 33. Rxa8 {[%clk 0:00:24]}  Rxa8 {[%clk 0:00:15]} 34. f3 {[%clk 0:00:24]}  Kf8 {[%clk 0:00:14]} 35. Kf2 {[%clk 0:00:24]}  Ke7 {[%clk 0:00:14]} 36. Ke1 {[%clk 0:00:24]}  Kd6 {[%clk 0:00:14]} 37. Rd2+ {[%clk 0:00:24]}  Kc6 {[%clk 0:00:14]} 38. g4 {[%clk 0:00:23]}  Ra7 {[%clk 0:00:11]} 39. h4 {[%clk 0:00:22]}  Rd7 {[%clk 0:00:09]} 40. g5 {[%clk 0:00:19]}  Rxd2 {[%clk 0:00:07]} 41. Kxd2 {[%clk 0:00:20]}  Nh5 {[%clk 0:00:06]} 42. Be4+ {[%clk 0:00:20]}  Kd6 {[%clk 0:00:05]} 43. Kc3 {[%clk 0:00:19]}  Ng3 {[%clk 0:00:05]} 44. Bd3 {[%clk 0:00:17]}  Ke5 {[%clk 0:00:04]} 45. a3 {[%clk 0:00:16]}  Kf4 {[%clk 0:00:04]} 46. b4 {[%clk 0:00:16]} 1-0


[Site "https://www.chess.com"]

[Event "Titled Tuesday Blitz August 09 Early 2022"]
[White "Delaney, Killian"]
[Black "Hambleton, Aman"]
[WhiteFideId "2501570"]
[BlackFideId "2606577"]
[WhiteElo "2254"]
[BlackElo "2538"]
[Result "0-1"]
[Round "02"]
[TimeControl "180+1"]
[Date "2022.08.09"]
[WhiteClock "0:00:07"]
[BlackClock "0:00:02"]

1. d4 {[%clk 0:03:00]}  Nf6 {[%clk 0:02:17]} 2. g4 {[%clk 0:02:59]}  Nxg4 {[%clk 0:01:43]} 3. e4 {[%clk 0:02:58]}  d5 {[%clk 0:01:32]} 4. Be2 {[%clk 0:02:49]}  Nf6 {[%clk 0:01:28]} 5. e5 {[%clk 0:02:42]}  Ng8 {[%clk 0:01:28]} 6. Nf3 {[%clk 0:02:37]}  Bg4 {[%clk 0:01:24]} 7. Rg1 {[%clk 0:02:30]}  Bxf3 {[%clk 0:01:21]} 8. Bxf3 {[%clk 0:02:31]}  e6 {[%clk 0:01:21]} 9. c4 {[%clk 0:02:21]}  c6 {[%clk 0:01:21]} 10. cxd5 {[%clk 0:02:15]}  cxd5 {[%clk 0:01:20]} 11. Nc3 {[%clk 0:02:15]}  Nc6 {[%clk 0:01:18]} 12. Be3 {[%clk 0:02:12]}  Nge7 {[%clk 0:01:15]} 13. Qd3 {[%clk 0:01:36]}  Qb6 {[%clk 0:01:05]} 14. O-O-O {[%clk 0:01:28]}  O-O-O {[%clk 0:00:04]} 15. Kb1 {[%clk 0:01:20]}  Kb8 {[%clk 0:00:05]} 16. Rc1 {[%clk 0:01:08]}  Rc8 {[%clk 0:00:04]} 17. Na4 {[%clk 0:01:00]}  Qd8 {[%clk 0:00:03]} 18. Nc5 {[%clk 0:00:58]}  Nf5 {[%clk 0:00:04]} 19. Bd2 {[%clk 0:00:55]}  Ncxd4 {[%clk 0:00:03]} 20. Bb4 {[%clk 0:00:15]}  Bxc5 {[%clk 0:00:02]} 21. Bxc5 {[%clk 0:00:15]}  Nxf3 {[%clk 0:00:03]} 22. Qxf3 {[%clk 0:00:14]}  b6 {[%clk 0:00:04]} 23. Bb4 {[%clk 0:00:11]}  Qd7 {[%clk 0:00:03]} 24. Qb3 {[%clk 0:00:05]}  Rxc1+ {[%clk 0:00:02]} 25. Rxc1 {[%clk 0:00:06]}  Rc8 {[%clk 0:00:03]} 26. Rd1 {[%clk 0:00:06]}  Qc6 {[%clk 0:00:03]} 27. a4 {[%clk 0:00:06]}  Qc4 {[%clk 0:00:03]} 28. Qa3 {[%clk 0:00:06]}  Qc2+ {[%clk 0:00:03]} 29. Ka2 {[%clk 0:00:05]}  Qxd1 {[%clk 0:00:03]} 30. Bd6+ {[%clk 0:00:06]}  Kb7 {[%clk 0:00:03]} 31. a5 {[%clk 0:00:06]}  Qe2 {[%clk 0:00:02]} 32. a6+ {[%clk 0:00:07]}  Qxa6 {[%clk 0:00:02]} 0-1


[Site "https://www.chess.com"]

[Event "Titled Tuesday Blitz August 09 Early 2022"]
[White "Devaev, Alexander"]
[Black "Terrieux, Kevin"]
[WhiteFideId "4169395"]
[BlackFideId "622591"]
[WhiteElo "2185"]
[BlackElo "2461"]
[Result "1-0"]
[Round "02"]
[TimeControl "180+1"]
[Date "2022.08.09"]
[WhiteClock "0:00:12"]
[BlackClock "0:00:03"]

1. d4 {[%clk 0:02:49]}  d5 {[%clk 0:02:56]} 2. c4 {[%clk 0:02:49]}  dxc4 {[%clk 0:02:57]} 3. Nf3 {[%clk 0:02:47]}  Nf6 {[%clk 0:02:56]} 4. Qa4+ {[%clk 0:02:47]}  Bd7 {[%clk 0:02:53]} 5. Qxc4 {[%clk 0:02:48]}  Bc6 {[%clk 0:02:52]} 6. Nc3 {[%clk 0:02:47]}  e6 {[%clk 0:02:51]} 7. Bf4 {[%clk 0:02:47]}  Bd6 {[%clk 0:02:49]} 8. Bg5 {[%clk 0:02:44]}  h6 {[%clk 0:02:46]} 9. Bh4 {[%clk 0:02:44]}  Nbd7 {[%clk 0:02:43]} 10. e3 {[%clk 0:02:42]}  Nb6 {[%clk 0:02:37]} 11. Qb3 {[%clk 0:02:43]}  Bd5 {[%clk 0:02:29]} 12. Qc2 {[%clk 0:02:40]}  Bxf3 {[%clk 0:02:21]} 13. gxf3 {[%clk 0:02:40]}  c5 {[%clk 0:02:06]} 14. Bb5+ {[%clk 0:02:30]}  Kf8 {[%clk 0:02:03]} 15. O-O-O {[%clk 0:02:22]}  Qc7 {[%clk 0:01:51]} 16. dxc5 {[%clk 0:01:48]}  Qxc5 {[%clk 0:01:47]} 17. Kb1 {[%clk 0:01:17]}  Be5 {[%clk 0:01:43]} 18. Be2 {[%clk 0:01:10]}  Bxc3 {[%clk 0:01:43]} 19. Qxc3 {[%clk 0:01:08]}  Qxc3 {[%clk 0:01:42]} 20. bxc3 {[%clk 0:01:09]}  Nfd5 {[%clk 0:01:39]} 21. Rc1 {[%clk 0:01:06]}  Na4 {[%clk 0:01:33]} 22. Bc4 {[%clk 0:00:56]}  Ndxc3+ {[%clk 0:01:22]} 23. Ka1 {[%clk 0:00:57]}  g5 {[%clk 0:00:50]} 24. Bg3 {[%clk 0:00:54]}  Ke7 {[%clk 0:00:50]} 25. Be5 {[%clk 0:00:51]}  Rhc8 {[%clk 0:00:47]} 26. Bxc3 {[%clk 0:00:35]}  Nxc3 {[%clk 0:00:47]} 27. Rxc3 {[%clk 0:00:35]}  b5 {[%clk 0:00:47]} 28. Rhc1 {[%clk 0:00:36]}  Rxc4 {[%clk 0:00:44]} 29. Rxc4 {[%clk 0:00:37]}  bxc4 {[%clk 0:00:44]} 30. Rxc4 {[%clk 0:00:37]}  Kd6 {[%clk 0:00:43]} 31. h4 {[%clk 0:00:35]}  f6 {[%clk 0:00:38]} 32. Kb2 {[%clk 0:00:32]}  h5 {[%clk 0:00:37]} 33. Rd4+ {[%clk 0:00:29]}  Ke5 {[%clk 0:00:35]} 34. f4+ {[%clk 0:00:22]}  Kf5 {[%clk 0:00:30]} 35. fxg5 {[%clk 0:00:23]}  fxg5 {[%clk 0:00:30]} 36. Kc3 {[%clk 0:00:22]}  Rc8+ {[%clk 0:00:28]} 37. Kd2 {[%clk 0:00:22]}  Rc5 {[%clk 0:00:28]} 38. hxg5 {[%clk 0:00:20]}  Kxg5 {[%clk 0:00:21]} 39. Ra4 {[%clk 0:00:21]}  a5 {[%clk 0:00:20]} 40. Ke2 {[%clk 0:00:21]}  Rf5 {[%clk 0:00:18]} 41. Kf1 {[%clk 0:00:21]}  Rb5 {[%clk 0:00:17]} 42. Kg2 {[%clk 0:00:21]}  e5 {[%clk 0:00:16]} 43. Kg3 {[%clk 0:00:18]}  Kf5 {[%clk 0:00:15]} 44. Rh4 {[%clk 0:00:15]}  Rb2 {[%clk 0:00:09]} 45. Rxh5+ {[%clk 0:00:14]}  Ke4 {[%clk 0:00:10]} 46. a4 {[%clk 0:00:14]}  Rb4 {[%clk 0:00:09]} 47. Rg5 {[%clk 0:00:14]}  Kd5 {[%clk 0:00:09]} 48. f4 {[%clk 0:00:14]}  Rxa4 {[%clk 0:00:08]} 49. Rxe5+ {[%clk 0:00:14]}  Kd6 {[%clk 0:00:08]} 50. Kg4 {[%clk 0:00:13]}  Ra1 {[%clk 0:00:09]} 51. Kf5 {[%clk 0:00:14]}  a4 {[%clk 0:00:09]} 52. Ra5 {[%clk 0:00:14]}  Kc6 {[%clk 0:00:07]} 53. e4 {[%clk 0:00:14]}  Kb6 {[%clk 0:00:07]} 54. Ra8 {[%clk 0:00:14]}  Kb7 {[%clk 0:00:08]} 55. Rh8 {[%clk 0:00:11]}  Rb1 {[%clk 0:00:07]} 56. e5 {[%clk 0:00:10]}  a3 {[%clk 0:00:06]} 57. Rh7+ {[%clk 0:00:09]}  Kb8 {[%clk 0:00:06]} 58. Rh8+ {[%clk 0:00:09]}  Ka7 {[%clk 0:00:06]} 59. Rh7+ {[%clk 0:00:09]}  Rb7 {[%clk 0:00:07]} 60. Rh3 {[%clk 0:00:09]}  Kb8 {[%clk 0:00:03]} 61. Rxa3 {[%clk 0:00:09]}  Rf7+ {[%clk 0:00:02]} 62. Ke4 {[%clk 0:00:09]}  Kc7 {[%clk 0:00:03]} 63. Rd3 {[%clk 0:00:10]}  Rf8 {[%clk 0:00:03]} 64. f5 {[%clk 0:00:10]}  Rh8 {[%clk 0:00:03]} 65. e6 {[%clk 0:00:11]}  Rh1 {[%clk 0:00:03]} 66. Ke5 {[%clk 0:00:12]} 1-0


[Site "https://www.chess.com"]

[Event "Titled Tuesday Blitz August 09 Early 2022"]
[White "Dimitrov, Atanas"]
[Black "Federzoni, Enzo"]
[WhiteFideId "2901315"]
[BlackFideId "2173301"]
[WhiteElo "2668"]
[BlackElo "1949"]
[Result "0-1"]
[Round "02"]
[TimeControl "180+1"]
[Date "2022.08.09"]
[WhiteClock "0:00:13"]
[BlackClock "0:00:55"]

1. Nf3 {[%clk 0:03:00]}  Nf6 {[%clk 0:02:58]} 2. c4 {[%clk 0:03:00]}  e6 {[%clk 0:02:55]} 3. Nc3 {[%clk 0:03:00]}  c5 {[%clk 0:02:51]} 4. e3 {[%clk 0:03:00]}  d5 {[%clk 0:02:50]} 5. cxd5 {[%clk 0:02:58]}  exd5 {[%clk 0:02:51]} 6. d4 {[%clk 0:02:55]}  cxd4 {[%clk 0:02:51]} 7. Nxd4 {[%clk 0:02:52]}  Nc6 {[%clk 0:02:51]} 8. Be2 {[%clk 0:02:51]}  Bb4 {[%clk 0:02:46]} 9. O-O {[%clk 0:02:50]}  O-O {[%clk 0:02:46]} 10. Bd2 {[%clk 0:02:47]}  Nxd4 {[%clk 0:02:37]} 11. exd4 {[%clk 0:02:48]}  Bf5 {[%clk 0:02:32]} 12. Re1 {[%clk 0:02:43]}  Bd6 {[%clk 0:02:27]} 13. Bf3 {[%clk 0:02:42]}  Rc8 {[%clk 0:02:19]} 14. Bg5 {[%clk 0:02:33]}  Bb4 {[%clk 0:02:10]} 15. Bxf6 {[%clk 0:02:26]}  gxf6 {[%clk 0:02:09]} 16. Nxd5 {[%clk 0:02:19]}  Bxe1 {[%clk 0:02:07]} 17. Qxe1 {[%clk 0:02:20]}  Be6 {[%clk 0:02:03]} 18. Nf4 {[%clk 0:02:16]}  Re8 {[%clk 0:01:58]} 19. Qd2 {[%clk 0:02:08]}  Rc4 {[%clk 0:01:52]} 20. Rd1 {[%clk 0:02:05]}  Bf5 {[%clk 0:01:50]} 21. Nh5 {[%clk 0:02:01]}  Bg6 {[%clk 0:01:43]} 22. Ng3 {[%clk 0:01:47]}  Rc2 {[%clk 0:01:42]} 23. Qb4 {[%clk 0:01:41]}  a5 {[%clk 0:01:37]} 24. Qxb7 {[%clk 0:01:36]}  Re7 {[%clk 0:01:33]} 25. Qb3 {[%clk 0:01:33]}  Qe8 {[%clk 0:01:29]} 26. Be4 {[%clk 0:01:18]}  Bxe4 {[%clk 0:01:23]} 27. Nxe4 {[%clk 0:01:17]}  Rxe4 {[%clk 0:01:23]} 28. Rf1 {[%clk 0:00:52]}  Ree2 {[%clk 0:01:19]} 29. Qg3+ {[%clk 0:00:51]}  Kh8 {[%clk 0:01:20]} 30. Qf4 {[%clk 0:00:51]}  Qe7 {[%clk 0:01:17]} 31. Qb8+ {[%clk 0:00:50]}  Qe8 {[%clk 0:01:17]} 32. Qf4 {[%clk 0:00:50]}  Rc6 {[%clk 0:01:16]} 33. d5 {[%clk 0:00:50]}  Rb6 {[%clk 0:01:14]} 34. b3 {[%clk 0:00:44]}  Re5 {[%clk 0:01:12]} 35. Qd4 {[%clk 0:00:38]}  Rd6 {[%clk 0:01:11]} 36. Qf4 {[%clk 0:00:38]}  Qd8 {[%clk 0:01:10]} 37. h3 {[%clk 0:00:38]}  Rdxd5 {[%clk 0:01:09]} 38. Qf3 {[%clk 0:00:36]}  Rd3 {[%clk 0:01:07]} 39. Qg4 {[%clk 0:00:35]}  Rd4 {[%clk 0:01:06]} 40. Qf3 {[%clk 0:00:35]}  Red5 {[%clk 0:01:06]} 41. Kh2 {[%clk 0:00:33]}  Qd6+ {[%clk 0:01:06]} 42. g3 {[%clk 0:00:32]}  Rd2 {[%clk 0:01:06]} 43. Re1 {[%clk 0:00:32]}  Kg7 {[%clk 0:01:04]} 44. h4 {[%clk 0:00:31]}  R5d3 {[%clk 0:01:03]} 45. Qg4+ {[%clk 0:00:31]}  Kh6 {[%clk 0:01:02]} 46. Qf5 {[%clk 0:00:21]}  Qxg3+ {[%clk 0:00:59]} 47. Kh1 {[%clk 0:00:14]}  Qxh4+ {[%clk 0:00:59]} 48. Kg1 {[%clk 0:00:13]}  Rg3+ {[%clk 0:00:55]} 0-1


[Site "https://www.chess.com"]